bitfinex-derivatives/quotes_SOLF0:USTF0_20260102
["timestamp","ask_amount","ask_price","bid_price","bid_amount"]
[1767380102462,3.98175999,130.72,130.64,0.05179782]
[1767380102669,3.98175999,130.72,130.62,3.93979689]
[1767380103254,0.05647297,130.68,130.66,0.05387306]
[1767380103667,3.98175999,130.72,130.66,0.05387306]
[1767380104566,0.04916445,130.7,130.66,6.94557306]
[1767380105269,0.04916445,130.7,130.66,0.05387306]
[1767380109170,0.04916445,130.7,130.66,6.94557306]
[1767380109484,4.03092444,130.7,130.66,0.05387306]
[1767380112377,10.92062444,130.7,130.63,10.83319689]
[1767380112868,3.98175999,130.65,130.58,6.8959]
[1767380113265,90.44,130.67,130.58,3.93979689]
[1767380113463,90.44,130.67,130.61,0.04828637]
[1767380113464,0.05436219,130.64,130.61,0.04828637]
[1767380113667,0.05436219,130.64,130.56,3.93979689]
[1767380113869,3.98175999,130.65,130.56,3.93979689]
[1767380114466,10.87415999,130.65,130.58,6.8959]
[1767380114672,0.05653841,130.63,130.6,0.05055042]
[1767380116869,3.98175999,130.68,130.6,3.99034731]
[1767380117182,3.98175999,130.68,130.6,3.93979689]
[1767380117882,0.05190504,130.65,130.58,90.44]
[1767380118278,0.05190504,130.65,130.58,3.93979689]
[1767380118967,0.05190504,130.65,130.6,0.05347976]
[1767380119470,0.05190504,130.65,130.6,6.94837976]
[1767380120484,0.05190504,130.65,130.6,3.99327665]
[1767380121581,0.05190504,130.65,130.6,10.88797665]
[1767380121779,0.05190504,130.65,130.6,3.99327665]
[1767380121984,0.05190504,130.65,130.6,0.05347976]
[1767380123579,0.05190504,130.65,130.6,6.94837976]
[1767380126679,0.05190504,130.65,130.6,0.05347976]
[1767380129274,0.05190504,130.65,130.6,3.8057501]
[1767380132380,134.51637505,130.71,130.61,3.75227034]
[1767380132381,111.00668483,130.71,130.61,3.75227034]
[1767380132686,3.83648483,130.7,130.61,3.75227034]
[1767380133279,6.8912,130.68,130.61,3.75227034]
[1767380133482,0.05111716,130.66,130.63,0.05454874]
[1767380134898,0.05111716,130.66,130.63,3.80681908]
[1767380135076,109.06121325,130.71,130.63,3.80681908]
[1767380135282,3.83648483,130.69,130.62,1.89101325]
[1767380135683,3.83648483,130.69,130.62,5.64328359]
[1767380135890,6.8913,130.67,130.62,5.64328359]
[1767380136087,6.8913,130.67,130.63,0.04997322]
[1767380136088,0.04844589,130.66,130.63,0.04997322]
[1767380137678,6.94024589,130.66,130.63,0.04997322]
[1767380138381,6.8924,130.65,130.6,1.89101325]
[1767380138584,0.04844589,130.66,130.6,1.89101325]
[1767380138982,3.88493072,130.66,130.6,1.89101325]
[1767380139380,3.88493072,130.66,130.62,0.04948034]
[1767380143794,3.88493072,130.66,130.56,3.75227034]
[1767380143795,3.83648483,130.65,130.56,3.75227034]
[1767380144095,5.72749808,130.65,130.57,5.64328359]
[1767380144782,0.05185782,130.62,130.6,0.05573436]
[1767380148599,0.05185782,130.62,130.53,6.57127542]
[1767380148600,3.88834265,130.62,130.54,3.75227034]
[1767380148800,3.83648483,130.62,130.54,3.75227034]
[1767380149702,0.05890713,130.59,130.57,0.0589228]
[1767380155711,10.73038483,130.62,130.57,0.0589228]
[1767380156704,0.04996174,130.61,130.57,0.0589228]
[1767380157003,6.94446174,130.61,130.57,0.0589228]
[1767380157207,3.88644657,130.61,130.57,0.0589228]
[1767380157804,6.8955,130.59,130.53,110.23227034]
[1767380158001,6.8955,130.59,130.53,94.23227034]
[1767380158195,6.8955,130.59,130.53,3.75227034]
[1767380158396,6.8961,130.58,130.53,3.75227034]
[1767380158707,0.05271109,130.57,130.54,0.05190132]
[1767380161007,3.83648483,130.61,130.54,3.7822481]
[1767380161500,3.99103094,130.63,130.54,3.7822481]
[1767380161699,123.95996267,130.65,130.54,10.62844678]
[1767380161700,6.895,130.6,130.54,10.62844678]
[1767380161901,3.99103094,130.61,130.54,10.62844678]
[1767380162106,0.05534709,130.58,130.56,0.05010896]
[1767380162710,3.99103094,130.63,130.56,0.05010896]
[1767380162899,10.88323094,130.66,130.58,3.73034678]
[1767380163098,3.99103094,130.66,130.58,3.73034678]
[1767380164000,0.05648829,130.63,130.61,0.05661076]
[1767380164805,3.99103094,130.66,130.61,0.05661076]
[1767380165909,0.04444564,130.65,130.61,0.05661076]
[1767380166517,3.99103094,130.68,130.62,3.73034678]
[1767380167107,3.99103094,130.68,130.59,3.73034678]
[1767380167300,3.99103094,130.68,130.6,3.73034678]
[1767380167501,3.99103094,130.68,130.63,0.05126378]
[1767380169410,3.99103094,130.71,130.63,3.78161056]
[1767380169612,9.06606378,130.72,130.66,0.05244786]
[1767380170224,13.05709472,130.72,130.66,0.05244786]
[1767380170511,3.99103094,130.72,130.66,0.05244786]
[1767380171207,97.3683,130.73,130.66,0.05244786]
[1767380171208,3.99103094,130.75,130.67,6.68720945]
[1767380171408,3.99103094,130.75,130.7,0.05272134]
[1767380172118,3.99103094,130.77,130.7,0.05272134]
[1767380172610,3.99103094,130.77,130.7,6.94222134]
[1767380172912,3.99103094,130.77,130.7,0.05272134]
[1767380173315,3.99103094,130.77,130.71,6.8891]
[1767380173502,3.99103094,130.77,130.73,0.05215891]
[1767380174003,262.23415032,130.79,130.73,0.05215891]
[1767380174611,262.23415032,130.79,130.73,6.94015891]
[1767380174812,3.99103094,130.78,130.73,0.05215891]
[1767380177817,262.23415032,130.79,130.73,3.78250569]
[1767380182711,266.22518126,130.79,130.73,3.78250569]
[1767380182911,266.22518126,130.79,130.73,10.67050569]
[1767380185630,266.22518126,130.79,130.74,6.8876]
[1767380188023,266.22518126,130.79,130.73,0.05215891]
[1767380188226,3.78468863,130.78,130.73,0.05215891]
[1767380189926,3.78468863,130.78,130.73,6.94025891]
[1767380193230,3.73678671,130.82,130.74,3.96503873]
[1767380193533,3.73678671,130.82,130.77,0.05342579]
[1767380193932,3.73678671,130.82,130.77,6.93942579]
[1767380194120,3.73678671,130.82,130.77,0.05342579]
[1767380194634,3.73678671,130.86,130.78,3.96503873]
[1767380194832,3.73678671,130.86,130.81,0.05324064]
[1767380198831,3.73678671,130.88,130.81,0.05324064]
[1767380199131,3.73678671,130.88,130.81,4.01827937]
[1767380199328,3.73678671,130.88,130.81,10.90177937]
[1767380199535,3.73678671,130.88,130.81,6.93674064]
[1767380200731,3.73678671,130.88,130.82,10.84843873]
[1767380200932,3.73678671,130.88,130.84,0.05152979]
[1767380205331,21.93704698,130.9,130.84,0.05152979]
[1767380205728,21.93704698,130.9,130.86,6.8812]
[1767380205929,21.93704698,130.9,130.87,0.05033958]
[1767380208143,3.73678671,130.89,130.83,6.8824]
[1767380208341,3.73678671,130.89,130.81,5.84952775]
[1767380208639,3.73678671,130.87,130.79,3.96503873]
[1767380208839,3.73678671,130.87,130.77,107.1127]
[1767380208840,3.73678671,130.85,130.77,3.96503873]
[1767380209036,5.62127573,130.84,130.77,3.96503873]
[1767380209236,0.04994297,130.82,130.79,0.0498347]
[1767380210941,1.93443199,130.82,130.79,0.0498347]
[1767380211542,3.73678671,130.81,130.76,6.8864]
[1767380212244,3.73678671,130.81,130.75,90.32]
[1767380212633,0.05401961,130.79,130.77,0.05315296]
[1767380214341,0.05401961,130.79,130.75,97.207]
[1767380215345,0.05401961,130.79,130.76,0.05664538]
[1767380216245,0.05401961,130.79,130.76,6.94314538]
[1767380216646,0.05401961,130.79,130.76,0.05664538]
[1767380220649,3.77906843,130.79,130.76,0.05664538]
[1767380220953,5.66355745,130.79,130.76,0.05664538]
[1767380222253,3.77906843,130.79,130.76,0.05664538]
[1767380223346,0.05401961,130.79,130.76,0.05664538]
[1767380227155,3.72504882,130.83,130.76,3.94836621]
[1767380227352,3.72504882,130.83,130.76,3.89172083]
[1767380227649,3.72504882,130.83,130.77,6.886]
[1767380228557,0.0520197,130.81,130.79,0.05185422]
[1767380231660,3.72504882,130.86,130.79,6.93635422]
[1767380231848,3.72504882,130.86,130.79,6.8845]
[1767380232747,0.04728793,130.84,130.81,0.04906773]
[1767380233957,3.72504882,130.89,130.81,3.94078856]
[1767380234254,3.72504882,130.89,130.81,5.77620985]
[1767380234855,3.72504882,130.89,130.84,0.05580202]
[1767380235859,3.72504882,130.89,130.84,1.94029104]
[1767380237254,3.72504882,130.89,130.84,0.05580202]
[1767380237463,3.72504882,130.89,130.84,8.82259104]
[1767380237656,18.20026027,130.9,130.84,8.82259104]
[1767380239057,3.72504882,130.89,130.84,0.05580202]
[1767380240757,18.20026027,130.9,130.84,1.94029104]
[1767380240963,21.92530909,130.9,130.84,1.94029104]
[1767380241961,21.92530909,130.9,130.85,8.76618902]
[1767380242268,21.92530909,130.9,130.85,1.88448902]
[1767380242758,21.92530909,130.9,130.84,3.94752285]
[1767380242957,21.92530909,130.9,130.85,1.88448902]
[1767380245766,21.92530909,130.9,130.85,8.76628902]
[1767380246564,21.92530909,130.9,130.85,6.8818]
[1767380249360,3.76123453,130.89,130.84,0.05580202]
[1767380249769,3.76123453,130.86,130.8,1.88448902]
[1767380250272,3.76123453,130.86,130.81,8.76798902]
[1767380250671,0.0549569,130.85,130.82,0.04840614]
[1767380253669,90.32,130.88,130.83,1.88448902]
[1767380254074,90.32,130.88,130.82,1.93289516]
[1767380254269,94.08123453,130.88,130.82,1.93289516]
[1767380254774,3.76123453,130.88,130.84,6.8823]
[1767380254977,3.76123453,130.88,130.85,0.05020213]
[1767380256673,3.76123453,130.89,130.85,6.93200213]
[1767380262378,18.20026027,130.9,130.86,6.8813]
[1767380262984,21.9614948,130.9,130.86,6.8813]
[1767380263184,21.9614948,130.9,130.85,6.93200213]
[1767380263577,18.20026027,130.9,130.86,1.88448902]
[1767380263780,18.20026027,130.9,130.86,5.84116829]
[1767380264284,18.20026027,130.9,130.87,6.8806]
[1767380268578,18.20026027,130.9,130.88,6.8802]
[1767380268780,18.20026027,130.9,130.88,6.93526021]
[1767380269282,3.76123453,130.92,130.88,6.93526021]
[1767380270281,3.76123453,130.92,130.88,0.05506021]
[1767380273679,3.76123453,130.92,130.88,6.93516021]
[1767380273878,97.1772,130.94,130.88,6.93516021]
[1767380273879,3.76123453,130.94,130.88,0.05506021]
[1767380274780,3.76123453,130.94,130.9,6.8792]
[1767380274980,3.76123453,130.94,130.91,0.05595734]
[1767380276075,90.3,130.95,130.91,0.05595734]
[1767380276278,94.06123453,130.95,130.91,0.05595734]
[1767380276778,3.76123453,130.94,130.91,0.05595734]
[1767380278287,3.76123453,130.94,130.87,3.95667927]
[1767380279089,3.76123453,130.94,130.89,6.8797]
[1767380279393,0.05417662,130.93,130.9,0.05795875]
[1767380280393,3.83857253,130.93,130.9,0.05795875]
[1767380280691,3.83857253,130.93,130.88,6.8802]
[1767380281083,0.05417662,130.93,130.87,3.82180028]
[1767380281795,3.83857253,130.93,130.89,0.05594159]
[1767380282886,3.83857253,130.93,130.89,6.93564159]
[1767380286290,3.83857253,130.93,130.89,0.05594159]
[1767380286905,0.05417662,130.93,130.89,6.93564159]
[1767380290508,0.05417662,130.93,130.9,6.8791]
[1767380290711,94.06439591,130.96,130.9,10.70090028]
[1767380291513,3.78439591,130.98,130.91,3.82180028]
[1767380291805,0.05408136,130.96,130.93,0.05308592]
[1767380292414,3.78439591,130.95,130.9,6.8787]
[1767380292610,3.78439591,130.95,130.86,3.82180028]
[1767380292814,3.78439591,130.93,130.83,117.44108977]
[1767380293015,3.78439591,130.93,130.86,6.881]
[1767380293315,3.78439591,130.93,130.84,3.82180028]
[1767380293616,0.05141938,130.9,130.87,0.05847836]
[1767380293809,90.28,130.95,130.87,3.88027864]
[1767380294006,94.06439591,130.95,130.87,3.82180028]
[1767380294408,3.78439591,130.95,130.89,6.8797]
[1767380294607,3.78439591,130.95,130.87,3.82180028]
[1767380295014,0.05627662,130.92,130.9,0.05387978]
[1767380295206,3.78439591,130.95,130.91,6.8787]
[1767380296112,94.06439591,130.97,130.91,6.8787]
[1767380296306,94.06439591,130.97,130.93,0.05561844]
[1767380298623,3.78439591,130.96,130.89,6.8793]
[1767380299721,3.83827242,130.94,130.91,0.04901606]
[1767380303721,0.05387651,130.94,130.91,0.04901606]
[1767380304313,3.78439591,131.0,130.91,3.87081634]
[1767380304614,3.78439591,130.98,130.91,3.82180028]
[1767380305209,3.78439591,130.98,130.94,6.8771]
[1767380305415,100.91849591,131.0,130.94,6.8771]
[1767380305623,3.78439591,130.99,130.96,0.05731916]
[1767380305813,3.83615662,130.99,130.93,3.82180028]
[1767380306320,3.83615662,130.99,130.91,6.76600958]
[1767380306521,3.78439591,130.99,130.91,6.76600958]
[1767380306819,3.78439591,130.99,130.94,0.04982234]
[1767380307122,0.05058721,130.96,130.94,0.04982234]
[1767380307323,3.78439591,130.99,130.94,0.04982234]
[1767380307909,3.78439591,130.99,130.94,6.92692234]
[1767380311925,3.78439591,130.99,130.94,0.04982234]
[1767380312126,4.01541862,130.97,130.91,16.0]
[1767380312433,4.01541862,130.97,130.89,3.77194882]
[1767380313529,4.01541862,130.97,130.92,0.0492521]
[1767380313530,0.05632263,130.94,130.92,0.0492521]
[1767380328634,4.07174125,130.94,130.89,6.8793]
[1767380328832,4.07174125,130.94,130.87,3.77194882]
[1767380329136,1.88349611,130.92,130.87,3.77194882]
[1767380329436,5.89891473,130.92,130.87,3.77194882]
[1767380329633,0.05299436,130.91,130.88,0.05262622]
[1767380330730,0.05299436,130.91,130.83,26.32933831]
[1767380330731,5.89891473,130.9,130.83,26.32933831]
[1767380330935,5.89891473,130.9,130.84,3.77194882]
[1767380331130,4.01541862,130.89,130.84,3.77194882]
[1767380331926,0.05603606,130.88,130.85,0.05884176]
[1767380332332,1.88349611,130.9,130.85,0.05884176]
[1767380333038,5.89891473,130.9,130.85,0.05884176]
[1767380333240,0.04855529,130.89,130.85,0.05884176]
[1767380337341,0.04855529,130.89,130.85,10.71249058]
[1767380337839,4.06397391,130.89,130.85,0.05884176]
[1767380338042,5.94747002,130.89,130.85,0.05884176]
[1767380341938,5.72740082,130.88,130.82,0.92962]
[1767380342746,5.72740082,130.88,130.82,4.69576823]
[1767380343044,0.05238802,130.86,130.84,0.05404489]
[1767380344136,90.28,130.91,130.84,0.05404489]
[1767380344137,94.14390471,130.9,130.84,3.82019312]
[1767380344346,96.02740082,130.9,130.84,3.82019312]
[1767380344540,3.84390471,130.89,130.84,0.05404489]
[1767380344845,5.72740082,130.88,130.84,0.05404489]
[1767380345347,0.05405415,130.87,130.84,0.05404489]
[1767380347542,3.84390471,130.86,130.82,0.92962]
[1767380348646,3.84390471,130.86,130.83,0.0550563]
[1767380350244,0.05405415,130.87,130.83,0.0550563]
[1767380351747,0.05405415,130.87,130.83,8.82115241]
[1767380352252,3.89795886,130.87,130.83,0.0550563]
[1767380361662,10.77885886,130.87,130.83,0.0550563]
[1767380362551,3.84390471,130.85,130.79,22.8846]
[1767380362751,3.84390471,130.85,130.79,6.8846]
[1767380363560,0.05708094,130.83,130.81,0.05008188]
[1767380370272,10.68818501,130.87,130.81,0.05008188]
[1767380370462,3.80738501,130.86,130.81,0.05008188]
[1767380371371,3.80738501,130.84,130.81,0.05008188]
[1767380371581,0.05602927,130.85,130.81,0.05008188]
[1767380372759,3.86341428,130.85,130.81,0.05008188]
[1767380377181,3.80738501,130.84,130.78,6.8852]
[1767380377871,3.80738501,130.84,130.77,5.63086731]
[1767380378067,3.80738501,130.83,130.79,0.0503415]
[1767380378282,0.05696768,130.82,130.79,0.0503415]
[1767380380481,3.80738501,130.86,130.79,3.7977127]
[1767380380779,5.69088112,130.85,130.79,0.0503415]
[1767380381094,3.80738501,130.84,130.78,1.88349611]
[1767380381485,0.05536214,130.82,130.8,0.05575605]
[1767380384084,3.86274715,130.82,130.76,1.88349611]
[1767380384286,3.80738501,130.81,130.75,5.63086731]
[1767380385089,3.80738501,130.81,130.75,3.7473712]
[1767380385480,0.05588513,130.79,130.77,0.05748426]
[1767380387586,3.80738501,130.83,130.77,1.94098037]
[1767380387788,3.80738501,130.83,130.77,1.88349611]
[1767380388392,3.80738501,130.83,130.76,3.7473712]
[1767380388587,0.05653254,130.81,130.78,0.05814644]
[1767380390204,3.80738501,130.83,130.78,1.94164255]
[1767380390396,3.80738501,130.83,130.78,0.05814644]
[1767380391299,0.05680355,130.82,130.78,0.05814644]
[1767380391693,0.05680355,130.82,130.78,6.75365259]
[1767380397309,0.05680355,130.82,130.78,3.80551764]
[1767380400296,0.05680355,130.82,130.78,4.06861395]
[1767380400606,3.90405819,130.89,130.82,4.01046751]
[1767380400803,3.90405819,130.91,130.84,4.01046751]
[1767380401103,3.90405819,130.93,130.86,4.01046751]
[1767380401501,3.90405819,130.91,130.84,4.01046751]
[1767380401703,0.04823601,130.9,130.88,0.05326782]
[1767380402807,3.9522942,130.9,130.84,4.01046751]
[1767380403007,0.04823601,130.9,130.84,6.95860246]
[1767380403604,0.04823601,130.9,130.82,4.01046751]
[1767380403605,3.9522942,130.9,130.82,4.01046751]
[1767380403908,0.05234508,130.87,130.85,0.05559436]
[1767380404505,3.95640327,130.87,130.79,4.01046751]
[1767380404812,3.90405819,130.85,130.77,4.01046751]
[1767380405507,0.0523104,130.82,130.8,0.04934705]
[1767380406100,3.95636859,130.82,130.73,6.95860246]
[1767380406297,3.90405819,130.82,130.74,4.01046751]
[1767380407209,0.05272108,130.79,130.77,0.05858519]
[1767380408406,0.05272108,130.79,130.72,6.95860246]
[1767380409508,0.05272108,130.79,130.74,0.05458239]
[1767380410114,0.05272108,130.79,130.74,4.0650499]
[1767380411014,0.05272108,130.79,130.74,0.05458239]
[1767380412412,3.95677927,130.79,130.74,0.05458239]
[1767380412607,3.90405819,130.78,130.74,0.05458239]
[1767380413411,0.05272108,130.79,130.74,0.05458239]
[1767380413610,0.05272108,130.79,130.74,4.0650499]
[1767380415316,3.90405819,130.86,130.78,4.01046751]
[1767380416205,0.05028948,130.83,130.81,0.0525049]
[1767380416612,3.90405819,130.89,130.81,3.00063985]
[1767380416812,3.90405819,130.89,130.78,6.95860246]
[1767380417211,3.90405819,130.87,130.78,6.95860246]
[1767380417615,0.05537731,130.84,130.81,0.05705947]
[1767380422206,3.90405819,130.9,130.82,2.94813495]
[1767380422410,3.90405819,130.9,130.82,6.95860246]
[1767380423414,0.05666848,130.87,130.85,0.05802013]
[1767380425518,3.96072667,130.87,130.79,4.01046751]
[1767380425718,3.90405819,130.87,130.77,2.94813495]
[1767380425923,2.94813495,130.88,130.76,4.01046751]
[1767380425924,3.90405819,130.85,130.76,6.95860246]
[1767380426128,3.90405819,130.85,130.76,4.01046751]
[1767380426621,0.05335574,130.82,130.79,0.05662189]
[1767380427922,22.94,130.91,130.79,0.05662189]
[1767380427923,3.78323896,130.88,130.79,0.05662189]
[1767380428127,3.78323896,130.88,130.78,6.72591291]
[1767380429027,0.04829902,130.84,130.82,0.05433553]
[1767380432325,3.78323896,130.88,130.82,0.05433553]
[1767380433327,0.05245132,130.86,130.82,0.05433553]
[1767380434128,3.75962864,130.86,130.82,0.05433553]
[1767380435031,0.05245132,130.86,130.82,0.05433553]
[1767380438033,3.75962864,130.86,130.82,0.05433553]
[1767380444429,0.05245132,130.86,130.82,0.05433553]
[1767380445631,3.75962864,130.86,130.82,0.05433553]
[1767380445825,3.75962864,130.86,130.77,6.76893761]
[1767380446027,3.70717732,130.86,130.77,6.76893761]
[1767380446828,3.75691951,130.83,130.75,6.76893761]
[1767380447026,3.75691951,130.83,130.72,16.0]
[1767380447027,3.70717732,130.81,130.72,6.76893761]
[1767380447231,3.70717732,130.81,130.72,3.82080266]
[1767380448135,0.05252735,130.78,130.75,0.05121264]
[1767380456051,3.75970467,130.78,130.7,3.82080266]
[1767380456352,3.70717732,130.78,130.7,3.82080266]
[1767380456747,3.70717732,130.81,130.72,3.82080266]
[1767380456948,0.05117201,130.78,130.75,0.04991734]
[1767380463864,4.07749266,130.86,130.76,3.88540904]
[1767380464069,4.07749266,130.88,130.76,3.88540904]
[1767380464873,0.0498739,130.83,130.81,0.05867308]
[1767380465057,0.05301177,130.83,130.81,0.05867308]
[1767380465257,4.07749266,130.88,130.81,3.94408212]
[1767380465458,4.07749266,130.88,130.81,0.05867308]
[1767380466266,90.36,130.93,130.76,4.33528947]
[1767380466267,4.13065791,130.86,130.76,3.88540904]
[1767380466468,4.07749266,130.86,130.76,3.88540904]
[1767380467262,4.07749266,130.86,130.8,0.0535723]
[1767380467467,22.94,130.92,130.8,0.0535723]
[1767380467468,4.07749266,130.89,130.8,3.93898134]
[1767380467668,4.07749266,130.89,130.8,3.88540904]
[1767380468465,0.05572002,130.86,130.83,0.05288495]
[1767380471267,4.13321268,130.86,130.83,0.05288495]
[1767380471467,4.13321268,130.86,130.77,3.88540904]
[1767380471667,4.07749266,130.86,130.77,3.88540904]
[1767380471968,4.07749266,130.9,130.77,3.88540904]
[1767380472168,4.07749266,130.9,130.78,3.88540904]
[1767380472368,0.05182086,130.85,130.83,0.04914895]
[1767380472562,0.05249421,130.85,130.83,0.04914214]
[1767380473765,4.12998687,130.85,130.79,1.88587711]
[1767380473960,4.12998687,130.85,130.77,1.88587711]
[1767380474165,5.96336977,130.84,130.77,1.88587711]
[1767380474773,0.04846306,130.82,130.79,0.05179113]
[1767380475772,4.07749266,130.81,130.74,5.77128615]
[1767380476366,4.07749266,130.81,130.74,3.88540904]
[1767380476676,5.96336977,130.8,130.74,3.88540904]
[1767380476876,0.0545012,130.78,130.76,0.05075146]
[1767380478477,1.88587711,130.82,130.76,0.05075146]
[1767380478677,5.96336977,130.8,130.69,3.88540904]
[1767380478883,5.96336977,130.8,130.72,3.88540904]
[1767380479072,1.88587711,130.8,130.73,1.88587711]
[1767380479276,1.88587711,130.8,130.73,5.77128615]
[1767380479476,0.04918621,130.78,130.75,0.04988271]
[1767380479687,5.96336977,130.82,130.75,3.93529175]
[1767380479874,5.96336977,130.82,130.76,3.88540904]
[1767380480584,4.07749266,130.82,130.76,3.88540904]
[1767380480887,0.05249073,130.8,130.78,0.04939101]
[1767380481176,1.88587711,130.84,130.78,0.04939101]
[1767380481379,1.88587711,130.84,130.78,3.88540904]
[1767380481776,5.96336977,130.85,130.78,3.88540904]
[1767380482174,0.04960359,130.83,130.8,0.05597402]
[1767380484883,4.07749266,130.88,130.8,3.94138306]
[1767380485081,4.07749266,130.88,130.8,3.88540904]
[1767380485887,0.05124685,130.85,130.83,0.05071723]
[1767380486685,4.12873951,130.85,130.77,3.88540904]
[1767380486985,4.07749266,130.85,130.77,3.88540904]
[1767380487686,0.04867255,130.82,130.8,0.05660755]
[1767380487981,4.03100392,130.88,130.8,3.98056165]
[1767380488186,4.03100392,130.88,130.8,3.9239541]
[1767380489082,4.03100392,130.88,130.83,0.05681473]
[1767380489083,0.05076792,130.85,130.83,0.05681473]
[1767380490693,4.03100392,130.87,130.83,0.05681473]
[1767380491685,4.03100392,130.87,130.79,6.8846]
[1767380491891,3.82351466,130.86,130.79,6.8846]
[1767380492890,0.0525332,130.84,130.81,0.05462085]
[1767380494791,3.87604786,130.84,130.76,3.95534289]
[1767380494998,3.82351466,130.83,130.74,3.95534289]
[1767380495686,3.82351466,130.82,130.74,3.95534289]
[1767380495882,0.05648381,130.79,130.77,0.05000852]
[1767380499195,0.05648381,130.79,130.74,3.95534289]
[1767380499791,0.05648381,130.79,130.74,10.84294289]
[1767380499982,0.05648381,130.79,130.74,3.95534289]
[1767380500386,0.05648381,130.79,130.75,0.05161268]
[1767380502694,0.05648381,130.79,130.75,4.00695557]
[1767380503292,3.82351466,130.82,130.76,3.95534289]
[1767380503795,3.82351466,130.84,130.76,3.95534289]
[1767380503997,3.82351466,130.84,130.76,10.84184289]
[1767380504187,3.82351466,130.84,130.79,0.05825073]
[1767380504188,0.0583279,130.81,130.79,0.05825073]
[1767380504792,3.82351466,130.84,130.79,0.05825073]
[1767380505097,90.36,130.85,130.79,0.05825073]
[1767380505489,97.2419,130.85,130.79,0.05825073]
[1767380505799,90.36,130.85,130.79,0.05825073]
[1767380506096,0.04845415,130.83,130.79,4.01359362]
[1767380506490,0.04845415,130.83,130.79,5.90014889]
[1767380507098,0.04845415,130.83,130.79,4.01359362]
[1767380508487,1.88655527,130.86,130.79,10.89859362]
[1767380509901,5.71006993,130.86,130.79,10.89859362]
[1767380510896,5.71006993,130.86,130.8,6.8845]
[1767380511096,5.71006993,130.86,130.82,0.05194077]
[1767380511796,5.71006993,130.86,130.74,3.95534289]
[1767380511797,3.82351466,130.85,130.74,3.95534289]
[1767380512098,3.82351466,130.81,130.74,3.95534289]
[1767380513001,0.04914674,130.79,130.76,0.05326506]
[1767380519815,10.70691466,130.83,130.76,6.93986506]
[1767380520501,3.80895628,130.85,130.77,3.78110426]
[1767380520708,3.80895628,130.88,130.77,3.78110426]
[1767380520907,3.80895628,130.88,130.81,0.05882504]
[1767380521402,3.80895628,130.88,130.74,16.0]
[1767380521403,3.80895628,130.84,130.74,16.0]
[1767380521608,3.80895628,130.84,130.75,3.78110426]
[1767380522404,0.04965843,130.81,130.78,0.05272193]
[1767380524516,3.85861471,130.81,130.78,0.05272193]
[1767380525823,3.80895628,130.79,130.7,3.78110426]
[1767380526113,3.80895628,130.79,130.66,319.00216563]
[1767380526114,3.80895628,130.79,130.67,3.78110426]
[1767380526417,3.80895628,130.77,130.67,3.78110426]
[1767380526712,0.0531527,130.73,130.71,0.05069108]
[1767380529214,3.80895628,130.77,130.71,0.05069108]
[1767380530110,10.69505628,130.77,130.71,0.05069108]
[1767380530309,0.05549837,130.75,130.71,0.05069108]
[1767380535317,3.86445465,130.75,130.71,0.05069108]
[1767380535511,10.75165465,130.75,130.71,0.05069108]
[1767380535711,10.75165465,130.75,130.67,3.78110426]
[1767380535913,10.69615628,130.75,130.67,3.78110426]
[1767380536115,3.80895628,130.75,130.67,3.78110426]
[1767380536305,6.8866,130.76,130.67,3.78110426]
[1767380536509,3.80895628,130.75,130.67,6.73312643]
[1767380536709,0.04988513,130.72,130.7,0.05433592]
[1767380541229,3.85884141,130.72,130.65,6.73312643]
[1767380541415,3.80895628,130.72,130.65,6.73312643]
[1767380542326,0.0495031,130.7,130.67,0.05863984]
[1767380542827,107.1202,130.77,130.68,3.78110426]
[1767380542828,3.80895628,130.77,130.68,3.78110426]
[1767380543927,0.05673836,130.74,130.71,0.05397468]
[1767380545315,94.20895628,130.8,130.72,3.78110426]
[1767380545623,3.80895628,130.79,130.72,3.78110426]
[1767380546014,3.80895628,130.79,130.73,2.95202217]
[1767380546423,0.05493479,130.77,130.75,0.0582016]
[1767380546722,3.80895628,130.79,130.75,0.0582016]
[1767380546913,10.69425628,130.79,130.75,0.0582016]
[1767380547114,90.4,130.8,130.75,3.01022377]
[1767380547315,6.8834,130.83,130.77,2.95202217]
[1767380547523,3.98203481,130.84,130.77,2.95202217]
[1767380547723,3.98203481,130.84,130.79,0.05697285]
[1767380549422,10.86453481,130.84,130.79,0.05697285]
[1767380550225,3.82995398,130.83,130.79,0.05697285]
[1767380550826,3.82995398,130.81,130.73,4.09489872]
[1767380551525,3.82995398,130.81,130.73,10.98289872]
[1767380551918,3.82995398,130.81,130.76,0.05605244]
[1767380552223,0.0579267,130.78,130.76,0.05605244]
[1767380553026,0.0579267,130.78,130.71,10.98369872]
[1767380553223,3.82995398,130.79,130.71,4.09489872]
[1767380554125,3.82995398,130.79,130.72,10.98349872]
[1767380554322,3.82995398,130.81,130.74,0.049259]
[1767380554518,3.82995398,130.81,130.73,4.09489872]
[1767380555127,3.82995398,130.81,130.74,10.98239872]
[1767380555328,0.05873577,130.79,130.76,0.05265048]
[1767380556916,3.88868975,130.79,130.71,4.09489872]
[1767380557221,3.82995398,130.78,130.71,10.98409872]
[1767380557419,3.82995398,130.78,130.71,4.09489872]